bitfinex/quotes_BTCUSD_20251209
["timestamp","ask_amount","ask_price","bid_price","bid_amount"]
[1765246231312,0.23272268,90237.0,90233.0,0.09391918]
[1765246231512,0.01643,90234.0,90233.0,0.08283677]
[1765246232534,0.22164351,90235.0,90233.0,0.08283677]
[1765246233875,0.01108205,90236.0,90233.0,0.08283677]
[1765246234134,0.232725,90236.0,90233.0,0.08283677]
[1765246234321,0.01108205,90236.0,90233.0,0.08283677]
[1765246234469,0.01108192,90237.0,90234.0,0.01108229]
[1765246237347,0.01108205,90236.0,90233.0,0.08283677]
[1765246237958,0.2457662,90239.0,90219.0,0.08295296]
[1765246237959,0.01108315,90227.0,90219.0,0.08295296]
[1765246238144,0.0110834,90225.0,90220.0,0.33408401]
[1765246238447,0.22167741,90222.0,90220.0,0.323]
[1765246238747,0.22168033,90220.0,90219.0,0.08295296]
[1765246238873,0.23811033,90220.0,90219.0,0.00011619]
[1765246239101,0.26401033,90220.0,90219.0,0.00011619]
[1765246240347,0.01643,90220.0,90219.0,0.00111619]
[1765246241305,0.04233,90220.0,90219.0,0.00311619]
[1765246241981,0.01305,90221.0,90219.0,0.00311619]
[1765246242184,0.01305,90221.0,90220.0,0.08283677]
[1765246244365,0.01305,90221.0,90220.0,0.08483677]
[1765246245104,0.01305,90221.0,90220.0,0.08583677]
[1765246249975,0.05694,90221.0,90220.0,0.003]
[1765246254903,0.03071,90221.0,90220.0,0.003]
[1765246255307,0.01305,90221.0,90220.0,0.003]
[1765246256719,0.23472787,90221.0,90220.0,0.003]
[1765246257080,0.25238787,90221.0,90220.0,0.003]
[1765246258486,0.03071,90221.0,90220.0,0.003]
[1765246258820,0.01305,90221.0,90220.0,0.003]
[1765246259019,0.01305,90221.0,90220.0,0.02498591]
[1765246259251,0.01108364,90223.0,90222.0,0.02198591]
[1765246259448,0.04389,90221.0,90220.0,0.003]
[1765246259632,0.07159973,90221.0,90220.0,0.003]
[1765246260289,0.22168033,90220.0,90219.0,0.00011619]
[1765246260882,0.23934033,90220.0,90219.0,0.00011619]
[1765246261582,0.26557033,90220.0,90219.0,0.00111619]
[1765246261739,0.26557033,90220.0,90219.0,0.00311619]
[1765246265093,0.01766,90220.0,90219.0,0.00311619]
[1765246267543,0.04047,90220.0,90219.0,0.00311619]
[1765246267908,0.06818004,90220.0,90219.0,0.00311619]
[1765246269360,0.04047,90220.0,90219.0,0.00311619]
[1765246277289,0.00161287,90223.0,90219.0,0.00311619]
[1765246277621,0.00161287,90223.0,90220.0,0.08283677]
[1765246277826,0.01108229,90234.0,90229.0,0.22165621]
[1765246278093,0.0110818,90238.0,90235.0,0.01108217]
[1765246278429,0.25846424,90239.0,90237.0,0.08283677]
[1765246278430,0.01305,90239.0,90237.0,0.08283677]
[1765246278633,0.2449,90256.0,90242.0,0.22162629]
[1765246278634,0.01108033,90250.0,90242.0,0.22162629]
[1765246278852,0.01195,90248.0,90242.0,0.22162629]
[1765246279266,0.0110807,90247.0,90244.0,0.01108106]
[1765246279567,0.01108082,90246.0,90241.0,0.01108143]
[1765246279769,0.22162084,90245.0,90241.0,0.01108143]
[1765246280839,0.23270178,90245.0,90241.0,0.01108143]
[1765246281020,0.01606,90242.0,90239.0,0.01108168]
[1765246281645,0.01108106,90244.0,90241.0,0.01108143]
[1765246282054,0.01108094,90245.0,90242.0,0.01108131]
[1765246282375,0.01195,90248.0,90246.0,0.22161647]
[1765246282671,0.01195,90248.0,90245.0,0.01108094]
[1765246283173,0.01195,90248.0,90245.0,0.2326979]
[1765246283579,0.245644,90248.0,90244.0,0.03306697]
[1765246284354,0.01295,90248.0,90245.0,0.01108094]
[1765246284763,0.01195,90248.0,90245.0,0.01108094]
[1765246285057,0.01295,90248.0,90246.0,0.22161647]
[1765246285495,0.001,90248.0,90246.0,0.22161647]
[1765246285906,0.01108033,90250.0,90247.0,0.0110807]
[1765246286084,0.01108057,90248.0,90245.0,0.01108094]
[1765246286282,0.01195,90247.0,90245.0,0.01108094]
[1765246287781,0.01195,90247.0,90246.0,0.001]
[1765246288190,0.01195,90247.0,90245.0,0.2326979]
[1765246288382,0.01195,90247.0,90245.0,0.2336979]
[1765246288926,0.01195,90247.0,90245.0,0.2326979]
[1765246289224,0.01195,90247.0,90246.0,0.001]
[1765246289982,0.0230302,90251.0,90247.0,0.23269471]
[1765246290183,0.01195,90250.0,90247.0,0.0110807]
[1765246291092,0.01107996,90253.0,90248.0,0.01108057]
[1765246291456,0.23268181,90252.0,90248.0,0.03306648]
[1765246291649,0.25646181,90252.0,90248.0,0.01108057]
[1765246292850,0.0110802,90251.0,90248.0,0.01108057]
[1765246293147,0.23268697,90250.0,90246.0,0.22161414]
[1765246293355,0.02801,90249.0,90245.0,0.01108094]
[1765246294502,0.24962064,90249.0,90245.0,0.01108094]
[1765246294682,0.01108094,90245.0,90242.0,0.01108131]
[1765246295348,0.23270142,90245.0,90240.0,0.23271054]
[1765246295882,0.23270142,90245.0,90242.0,0.001]
[1765246296181,0.23270142,90245.0,90241.0,0.01108143]
[1765246296182,0.01108094,90245.0,90241.0,0.01108143]
[1765246296326,0.01269418,90242.0,90238.0,0.332351]
[1765246296534,0.01108303,90228.0,90225.0,0.217296]
[1765246296729,0.02801,90224.0,90223.0,0.19463977]
[1765246297031,0.02801,90224.0,90223.0,0.08283677]
[1765246297232,0.2496805,90224.0,90223.0,0.08283677]
[1765246297438,0.2734605,90224.0,90223.0,0.08283677]
[1765246297637,0.2734605,90224.0,90216.0,0.0110845]
[1765246297638,0.01108426,90218.0,90216.0,0.08283677]
[1765246297856,0.01195,90218.0,90216.0,0.30452478]
[1765246298055,0.01195,90224.0,90220.0,0.01108401]
[1765246298255,0.01195,90224.0,90223.0,0.001]
[1765246298500,0.01195,90224.0,90223.0,0.002]
[1765246298709,0.01195,90224.0,90223.0,0.001]
[1765246299471,0.01295,90224.0,90223.0,0.001]
[1765246299706,0.2346205,90224.0,90222.0,0.02198591]
[1765246299919,0.24570402,90224.0,90222.0,0.02198591]
[1765246300116,0.24570402,90224.0,90220.0,0.01108401]
[1765246300526,0.26948402,90224.0,90220.0,0.01108401]
[1765246300816,0.01108364,90223.0,90220.0,0.01108401]
[1765246301410,0.01108377,90222.0,90219.0,0.02198591]
[1765246303041,0.22167787,90221.0,90219.0,0.02198591]
[1765246303658,0.01108364,90223.0,90220.0,0.01108401]
[1765246303863,0.01108377,90222.0,90219.0,0.03307004]
[1765246304061,0.01108377,90222.0,90219.0,0.02198591]
[1765246304611,0.01108364,90223.0,90220.0,0.01108401]
[1765246305039,0.01108377,90222.0,90219.0,0.03307004]
[1765246305647,0.01108364,90223.0,90220.0,0.23276434]
[1765246305843,0.01108364,90223.0,90220.0,0.01108401]
[1765246306576,0.03488364,90223.0,90220.0,0.01108401]
[1765246306776,0.23275931,90222.0,90219.0,0.03307004]
[1765246306955,0.01526,90221.0,90219.0,0.03307004]
[1765246307856,0.001,90223.0,90220.0,0.23276434]
[1765246308064,0.01195,90224.0,90221.0,0.01108389]
[1765246309073,0.03575,90224.0,90221.0,0.01108389]
[1765246310045,0.03575,90224.0,90220.0,0.23276434]
[1765246310046,0.26850461,90224.0,90220.0,0.01108401]
[1765246310758,0.01108364,90223.0,90220.0,0.01108401]
[1765246311970,0.01208364,90223.0,90220.0,0.01108401]
[1765246312172,0.01108377,90222.0,90219.0,0.01108413]
[1765246315625,0.03575,90224.0,90221.0,0.01108389]
[1765246315885,0.01195,90224.0,90221.0,0.23276024]
[1765246316095,0.01195,90224.0,90222.0,0.22167364]
[1765246316282,0.01225,90227.0,90224.0,0.01108352]
[1765246316432,0.23274579,90228.0,90227.0,0.02198591]
[1765246316632,0.01108352,90224.0,90219.0,0.01108413]
[1765246316830,0.23275541,90224.0,90223.0,0.02198591]
[1765246317034,0.23375541,90224.0,90221.0,0.0330698]
[1765246317283,0.01208352,90224.0,90221.0,0.25474725]
[1765246317489,0.01108352,90224.0,90221.0,0.0330698]
[1765246318296,0.01108426,90218.0,90215.0,0.24367853]
[1765246318450,0.01108426,90218.0,90217.0,0.08283677]
[1765246318964,0.0110845,90216.0,90214.0,0.693836]
[1765246319366,0.23277639,90216.0,90214.0,0.693836]
[1765246320208,0.01225,90215.0,90214.0,0.693836]
[1765246320414,0.22171228,90207.0,90200.0,0.01108647]
[1765246320612,0.01108585,90205.0,90202.0,0.01752]
[1765246320815,0.22171965,90204.0,90202.0,0.01752]
[1765246321015,0.01108585,90205.0,90202.0,0.01752]
[1765246321315,0.03488585,90205.0,90202.0,0.01752]
[1765246321613,0.01308561,90207.0,90203.0,0.22172211]
[1765246321790,0.03488561,90207.0,90203.0,0.22172211]
[1765246322315,0.01108561,90207.0,90203.0,0.22172211]
[1765246322522,0.01108561,90207.0,90202.0,0.02860622]
[1765246322523,0.01108573,90206.0,90202.0,0.01108622]
[1765246322722,0.03488573,90206.0,90202.0,0.01108622]
[1765246322925,0.03488573,90206.0,90203.0,0.0110861]
[1765246323235,0.01526,90203.0,90202.0,0.01108622]
[1765246323607,0.03906,90203.0,90201.0,0.01108635]
[1765246324455,0.01108573,90206.0,90203.0,0.0110861]
[1765246324779,0.04713536,90209.0,90204.0,0.23280377]
[1765246325272,0.01108549,90208.0,90205.0,0.01108585]
[1765246326513,0.001,90206.0,90205.0,0.01108585]
[1765246326709,0.01108549,90208.0,90205.0,0.01108585]
[1765246327066,0.01208549,90208.0,90205.0,0.01108585]
[1765246327443,0.01108549,90208.0,90205.0,0.01108585]
[1765246327659,0.001,90206.0,90205.0,0.01108585]
[1765246328023,0.01108549,90208.0,90205.0,0.01108585]
[1765246329226,0.01208549,90208.0,90205.0,0.01108585]
[1765246329862,0.01108561,90207.0,90204.0,0.25478986]
[1765246330081,0.23279969,90207.0,90204.0,0.02198591]
[1765246330480,0.23279969,90207.0,90201.0,0.01108635]
[1765246330481,0.01108598,90204.0,90201.0,0.24371237]
[1765246330661,0.01108598,90204.0,90201.0,0.03307226]
[1765246331270,0.22173686,90197.0,90196.0,0.08283677]
[1765246331472,0.22173686,90197.0,90195.0,0.08283677]
[1765246331473,0.01108696,90196.0,90195.0,0.08283677]
[1765246331814,0.0249,90196.0,90195.0,0.08283677]
[1765246332102,0.23281631,90200.0,90195.0,0.08283677]
[1765246332103,0.01108573,90206.0,90200.0,0.22172923]
[1765246332245,0.23280304,90205.0,90203.0,0.02198591]
[1765246332649,0.23281351,90201.0,90200.0,0.02198591]
[1765246333149,0.24472351,90201.0,90200.0,0.02198591]
[1765246333356,0.01108672,90198.0,90197.0,0.02198591]
[1765246333592,0.03895635,90201.0,90197.0,0.01108684]
[1765246333752,0.01108647,90200.0,90197.0,0.01108684]
[1765246334557,0.01191,90201.0,90198.0,0.23282112]
[1765246334785,0.0110861,90203.0,90200.0,0.01108647]
[1765246335595,0.01108622,90202.0,90200.0,0.001]
[1765246336047,0.01108622,90202.0,90199.0,0.01108659]
[1765246336733,0.23281338,90201.0,90197.0,0.01108684]
[1765246337081,0.26957338,90201.0,90200.0,0.002]
[1765246337210,0.28553338,90201.0,90200.0,0.001]
[1765246337416,0.26068338,90201.0,90199.0,0.001]
[1765246338420,0.04081,90200.0,90199.0,0.001]
[1765246338617,0.23281853,90199.0,90196.0,0.01108696]
[1765246338818,0.01108659,90199.0,90196.0,0.01108696]
[1765246339028,0.01108659,90199.0,90197.0,0.001]
[1765246339211,0.24472338,90201.0,90196.0,0.01108696]
[1765246339410,0.22173686,90197.0,90195.0,0.10482268]
[1765246339859,0.22173686,90197.0,90195.0,0.08283677]
[1765246340121,0.04081,90196.0,90195.0,0.08283677]
[1765246340290,0.01108807,90187.0,90184.0,0.33408844]
[1765246340526,0.01108782,90189.0,90184.0,0.33408844]
[1765246340720,0.01108794,90188.0,90184.0,0.33408844]
[1765246340922,0.01108794,90188.0,90185.0,0.124852]
[1765246341309,0.24475129,90191.0,90187.0,0.124194]
[1765246341508,0.01191,90191.0,90190.0,0.08283677]
[1765246341928,0.01108708,90195.0,90191.0,0.23283919]
[1765246342298,0.01108721,90194.0,90191.0,0.01108758]
[1765246342752,0.00161287,90196.0,90192.0,0.01108745]
[1765246342978,0.23282886,90195.0,90192.0,0.01108745]
[1765246343155,0.23282886,90195.0,90191.0,0.01108758]
[1765246343297,0.01108708,90195.0,90192.0,0.23283648]
[1765246343522,0.00161287,90196.0,90193.0,0.23283226]
[1765246343755,0.01191,90201.0,90197.0,0.01108684]
[1765246343960,0.01191,90201.0,90197.0,0.01241775]
[1765246344307,0.01191,90201.0,90198.0,0.22173229]
[1765246344927,0.01191,90201.0,90198.0,0.23281901]
[1765246346225,0.01191,90201.0,90200.0,0.22172949]
[1765246346384,0.01191,90202.0,90200.0,0.22172949]
[1765246346808,0.01108585,90205.0,90202.0,0.00999818]
[1765246347011,0.01191,90217.0,90198.0,0.23381901]
[1765246347012,0.0110845,90216.0,90209.0,0.23279272]
[1765246347275,0.01108426,90218.0,90214.0,0.23277983]
[1765246347446,0.01191,90222.0,90216.0,0.0110845]
[1765246347645,0.01108364,90223.0,90219.0,0.01108413]
[1765246347866,0.25026961,90226.0,90221.0,0.22167596]
[1765246348007,0.0110834,90225.0,90222.0,0.01108377]
[1765246348206,0.23274961,90226.0,90223.0,0.01108364]
[1765246348524,0.01108327,90226.0,90223.0,0.01108364]
[1765246348954,0.01108315,90227.0,90224.0,0.01108352]
[1765246349493,0.02299291,90229.0,90225.0,0.22166805]
[1765246349759,0.01108278,90230.0,90226.0,0.01108327]
[1765246351164,0.01191,90231.0,90228.0,0.01108303]
[1765246351326,0.01108241,90233.0,90229.0,0.01108291]
[1765246351527,0.01108217,90235.0,90232.0,0.01108254]
[1765246351724,0.01108217,90235.0,90232.0,0.09391931]
[1765246351949,0.01108217,90235.0,90232.0,0.08283677]
[1765246352472,0.001,90233.0,90232.0,0.08283677]
[1765246352762,0.23272315,90236.0,90232.0,0.09391931]
[1765246352996,0.22164594,90234.0,90232.0,0.08283677]
[1765246353750,0.01596,90233.0,90232.0,0.08283677]
[1765246354575,0.001,90234.0,90232.0,0.08283677]
[1765246354824,0.01108217,90235.0,90232.0,0.09391931]
[1765246355146,0.001,90233.0,90232.0,0.09391931]
[1765246355289,0.01108217,90235.0,90232.0,0.09391931]
[1765246355711,0.001,90234.0,90232.0,0.09391931]
[1765246355874,0.01108217,90235.0,90232.0,0.08283677]
[1765246356071,0.00161287,90236.0,90233.0,0.01108241]
[1765246356832,0.00161287,90236.0,90233.0,0.23272975]
[1765246357029,0.00161287,90236.0,90235.0,0.22164348]
[1765246357246,0.02646287,90236.0,90233.0,0.01108241]
[1765246357574,0.02646287,90236.0,90232.0,0.08283677]
[1765246357575,0.01108217,90235.0,90232.0,0.08283677]
[1765246357774,0.01596,90233.0,90232.0,0.08283677]
[1765246358406,0.04081,90233.0,90232.0,0.08283677]
[1765246358611,0.01596,90233.0,90232.0,0.08283677]
[1765246359528,0.01108389,90221.0,90216.0,0.0110845]
[1765246359705,0.02787,90219.0,90215.0,0.01108463]
[1765246359948,0.02787,90219.0,90208.0,0.02198591]
[1765246359949,0.24955279,90219.0,90208.0,0.02198591]
[1765246360148,0.24955279,90219.0,90210.0,0.323]
[1765246360149,0.23278342,90213.0,90210.0,0.323]
[1765246360560,0.01191,90211.0,90210.0,0.613703]
[1765246360759,0.01191,90211.0,90210.0,0.83540791]
[1765246360959,0.01191,90211.0,90210.0,0.51240791]
[1765246362163,0.01391,90211.0,90210.0,0.51240791]
[1765246362578,0.01391,90211.0,90210.0,0.241903]
[1765246363420,0.03103,90211.0,90210.0,0.241903]
[1765246363648,0.05429,90211.0,90210.0,0.241903]
[1765246363982,0.06537512,90211.0,90209.0,0.323]
[1765246364170,0.03938,90210.0,90209.0,0.561907]
[1765246364367,0.01108573,90206.0,90199.0,0.01108659]
[1765246364572,0.2217242,90203.0,90200.0,0.323]
[1765246364783,0.22171965,90204.0,90200.0,0.323]
[1765246364978,0.01108585,90205.0,90195.0,0.01108708]
[1765246364979,0.01108647,90200.0,90195.0,0.23282855]
[1765246365214,0.01612,90200.0,90198.0,0.116202]
[1765246365450,0.02720647,90200.0,90197.0,0.01108684]
[1765246365662,0.02720647,90200.0,90198.0,0.11276]
[1765246366058,0.02720647,90200.0,90198.0,0.112541]
[1765246366257,0.02720647,90200.0,90197.0,0.01108684]
[1765246366822,0.02720647,90200.0,90198.0,0.001]
[1765246367451,0.01612,90199.0,90198.0,0.001]
[1765246367830,0.03938,90199.0,90198.0,0.001]
[1765246368036,0.01108708,90195.0,90192.0,0.323]
[1765246368229,0.01612,90193.0,90192.0,0.323]
[1765246368429,0.03434672,90198.0,90194.0,0.01108721]
[1765246368655,0.01108672,90198.0,90194.0,0.2328312]
[1765246368859,0.22173422,90199.0,90198.0,0.002]
[1765246369059,0.23281617,90200.0,90198.0,0.002]
[1765246369260,0.22172652,90202.0,90198.0,0.01108672]
[1765246369876,0.0110861,90203.0,90199.0,0.01108659]
[1765246370234,0.02306598,90204.0,90201.0,0.01108635]
[1765246370555,0.01198,90204.0,90201.0,0.23281334]
[1765246371059,0.02306598,90204.0,90201.0,0.01108635]
[1765246371253,0.01612,90202.0,90199.0,0.01108659]
[1765246371457,0.01612,90200.0,90199.0,0.01108659]
[1765246372219,0.24478635,90204.0,90199.0,0.01108659]
[1765246372428,0.0110861,90203.0,90200.0,0.01108647]
[1765246374616,0.0110861,90203.0,90200.0,0.01208647]
[1765246374977,0.23281022,90203.0,90200.0,0.001]
[1765246375181,0.01198,90201.0,90200.0,0.001]
[1765246375405,0.0281,90201.0,90200.0,0.001]
[1765246376383,0.01198,90201.0,90200.0,0.002]
[1765246377186,0.01198,90201.0,90200.0,0.001]
[1765246377390,0.01198,90204.0,90201.0,0.23281338]
[1765246377589,0.01198,90208.0,90201.0,0.23281338]
[1765246377867,0.22171965,90204.0,90200.0,0.002]
[1765246378271,0.01108598,90204.0,90200.0,0.01108647]
[1765246378475,0.01108573,90206.0,90202.0,0.2328084]
[1765246378697,0.24477614,90208.0,90204.0,0.01108598]
[1765246378896,0.23279956,90207.0,90203.0,0.0110861]
[1765246380065,0.23279956,90207.0,90202.0,0.01108622]
[1765246380066,0.23280304,90205.0,90202.0,0.01108622]
[1765246380242,0.01108585,90205.0,90202.0,0.01108622]
[1765246381455,0.24893007,90203.0,90196.0,0.47846968]
[1765246381631,0.01108672,90198.0,90194.0,0.01108721]
[1765246381836,0.01198,90197.0,90194.0,0.01108721]
[1765246382034,0.01198,90197.0,90195.0,0.22173974]
[1765246382234,0.01198,90197.0,90194.0,0.2328297]
[1765246382893,0.01198,90197.0,90195.0,0.22173978]
[1765246384289,0.01198,90197.0,90195.0,0.22473978]
[1765246384841,0.01198,90197.0,90195.0,0.22573978]
[1765246385060,0.26111932,90196.0,90195.0,0.004]
[1765246385259,0.26273219,90196.0,90195.0,0.004]
[1765246385917,0.26273219,90196.0,90195.0,0.003]
[1765246386397,0.01108782,90189.0,90186.0,0.01108819]
[1765246386598,0.01108758,90191.0,90187.0,0.01108807]
[1765246386800,0.02304758,90191.0,90190.0,0.08283677]
[1765246387776,0.03880758,90191.0,90190.0,0.08283677]
[1765246388426,0.03980758,90191.0,90190.0,0.08283677]
[1765246390305,0.02872,90191.0,90190.0,0.08283677]
[1765246391095,0.05334,90191.0,90190.0,0.08283677]
[1765246391344,0.02872,90191.0,90190.0,0.08283677]
[1765246391544,0.05334,90191.0,90190.0,0.08283677]
[1765246392703,0.05334,90191.0,90190.0,0.08295296]
[1765246393399,0.01296,90191.0,90190.0,0.08295296]
[1765246393604,0.001,90191.0,90190.0,0.10627498]
[1765246394820,0.001,90191.0,90190.0,0.40728907]
[1765246395029,0.001,90191.0,90190.0,0.42793887]
[1765246395231,0.001,90191.0,90190.0,2.42793887]
[1765246395435,0.001,90191.0,90190.0,2.40807387]
[1765246396233,0.001,90191.0,90190.0,1.15158587]
[1765246396662,0.002,90191.0,90190.0,1.15158587]
[1765246396945,0.006,90191.0,90190.0,1.15158587]
[1765246405344,0.002,90191.0,90190.0,1.15158587]
[1765246405534,0.01215,90216.0,90212.0,0.23278412]
[1765246405705,0.01215,90216.0,90215.0,0.08283677]
[1765246406856,0.01315,90216.0,90215.0,0.08283677]
[1765246407055,0.05129,90216.0,90215.0,0.08283677]
[1765246407234,0.23278498,90212.0,90209.0,0.08283677]
[1765246407558,0.01529,90210.0,90209.0,0.08283677]
[1765246407737,0.01529,90210.0,90209.0,0.30454413]
[1765246408956,0.01108475,90214.0,90210.0,0.23278818]
[1765246409130,0.2556324,90213.0,90209.0,0.08383677]
[1765246409338,0.2556324,90213.0,90209.0,0.09492213]
[1765246409339,0.01108499,90212.0,90209.0,0.09492213]
[1765246409738,0.01269762,90214.0,90210.0,0.01108524]
[1765246409943,0.00161287,90214.0,90213.0,0.22169753]
[1765246410365,0.00161287,90214.0,90211.0,0.23278733]
[1765246410561,0.00161287,90214.0,90212.0,0.22169811]
[1765246411905,0.03814,90213.0,90209.0,0.09392213]
[1765246412072,0.01269762,90214.0,90211.0,0.01108512]
[1765246412276,0.00161287,90214.0,90211.0,0.23278569]
[1765246412937,0.25724333,90214.0,90211.0,0.01108512]
[1765246413253,0.25724333,90214.0,90209.0,0.31562841]
[1765246413254,0.2327843,90213.0,90209.0,0.31562841]
[1765246413453,0.03554762,90214.0,90210.0,0.2327879]
[1765246413652,0.01269762,90214.0,90210.0,0.2327879]
[1765246413883,0.01269762,90214.0,90211.0,0.01108512]
[1765246414058,0.00161287,90214.0,90212.0,0.22169999]
[1765246415418,0.02323327,90226.0,90222.0,0.22167542]
[1765246415765,0.01215,90226.0,90222.0,0.22167542]
[1765246416190,0.01215,90226.0,90224.0,0.22167008]
[1765246416938,0.01215,90226.0,90225.0,0.08283677]
[1765246421941,0.02744,90226.0,90225.0,0.08283677]
[1765246422539,0.05004,90226.0,90225.0,0.08283677]
[1765246422766,0.02744,90226.0,90225.0,0.08283677]
[1765246424460,0.05004,90226.0,90225.0,0.08283677]
[1765246425049,0.02744,90226.0,90225.0,0.08283677]
[1765246426973,0.01215,90226.0,90225.0,0.08283677]
[1765246427339,0.01108291,90229.0,90226.0,0.01108327]
[1765246427542,0.01215,90231.0,90227.0,0.23274628]
[1765246428192,0.24488788,90231.0,90226.0,0.01108327]
[1765246428415,0.001,90229.0,90226.0,0.01108327]
[1765246428565,0.26748788,90231.0,90226.0,0.01108327]
[1765246428750,0.01108278,90230.0,90227.0,0.01108315]
[1765246429856,0.02323266,90231.0,90228.0,0.01108303]
[1765246431230,0.01215,90231.0,90229.0,0.22165822]
[1765246431548,0.01108205,90236.0,90232.0,0.01108254]
[1765246431754,0.01215,90237.0,90232.0,0.01108254]
[1765246431932,0.01215,90237.0,90231.0,0.01108266]
[1765246431933,0.22164103,90236.0,90233.0,0.02198591]
[1765246432132,0.23272308,90236.0,90233.0,0.02198591]
[1765246432318,0.01108217,90235.0,90230.0,0.03306869]
[1765246432515,0.23273313,90233.0,90230.0,0.02198591]
[1765246433457,0.22165294,90232.0,90230.0,0.02198591]
[1765246434203,0.23273313,90233.0,90230.0,0.02198591]
[1765246434823,0.23272577,90235.0,90230.0,0.25472409]
[1765246435293,0.23272577,90235.0,90231.0,0.01108266]
[1765246435868,0.23372577,90235.0,90231.0,0.01108266]
[1765246436356,0.01108205,90236.0,90232.0,0.01108254]
[1765246436589,0.001,90235.0,90232.0,0.01108254]
[1765246437052,0.01108229,90234.0,90231.0,0.01108266]
[1765246437450,0.01108229,90234.0,90230.0,0.25472409]
[1765246438051,0.01108229,90234.0,90231.0,0.01108266]
[1765246438252,0.01108217,90235.0,90231.0,0.01108266]
[1765246438487,0.01752,90246.0,90237.0,0.01108192]
[1765246438754,0.23268572,90251.0,90240.0,0.23271263]
[1765246438755,0.23270212,90245.0,90240.0,0.23271263]
[1765246438999,0.23270212,90245.0,90241.0,0.02198591]
[1765246439823,0.01108106,90244.0,90241.0,0.03306734]
[1765246440114,0.01108106,90244.0,90241.0,0.02198591]
[1765246440335,0.2226312,90240.0,90239.0,0.10482268]
[1765246440482,0.001,90240.0,90239.0,0.10482268]
[1765246440867,0.23270984,90242.0,90239.0,0.10482268]
[1765246441895,0.23270984,90242.0,90241.0,0.001]
[1765246441896,0.01108131,90242.0,90241.0,0.001]
[1765246442168,0.01108131,90242.0,90239.0,0.11690436]
[1765246442434,0.2327095,90242.0,90239.0,0.08483677]
[1765246442636,0.01601,90240.0,90239.0,0.002]
[1765246442932,0.01762287,90240.0,90239.0,0.001]
[1765246443259,0.01762287,90240.0,90229.0,0.109891]
[1765246443260,0.01108266,90231.0,90229.0,0.109891]
[1765246443397,0.23273774,90231.0,90228.0,0.108445]
[1765246443733,0.23273774,90231.0,90225.0,0.09392017]
[1765246443734,0.23273774,90231.0,90227.0,0.161908]
[1765246444099,0.01108278,90230.0,90227.0,0.161908]
[1765246444626,0.23274052,90230.0,90228.0,0.002]
[1765246444827,0.01108291,90229.0,90226.0,0.17299127]
[1765246445125,0.01108291,90229.0,90228.0,0.218808]
[1765246445334,0.01108278,90230.0,90228.0,0.161908]
[1765246445706,0.01108278,90230.0,90228.0,0.163908]
[1765246445910,0.01108278,90230.0,90228.0,0.002]
[1765246447059,0.02665291,90229.0,90227.0,0.108308]
[1765246447272,0.01108291,90229.0,90227.0,0.108308]
[1765246447569,0.01108291,90229.0,90228.0,0.001]
[1765246447882,0.01108291,90229.0,90228.0,0.002]
[1765246448071,0.01108291,90229.0,90227.0,0.108308]
[1765246448279,0.01108291,90229.0,90227.0,0.109308]
[1765246448459,0.01108291,90229.0,90227.0,0.003]
[1765246448658,0.26080068,90228.0,90227.0,0.001]
[1765246449227,0.23723068,90228.0,90227.0,0.001]
[1765246449428,0.24831371,90228.0,90225.0,0.08283677]
[1765246449933,0.24831371,90228.0,90217.0,0.23168457]
[1765246449934,0.22169775,90213.0,90212.0,0.226184]
[1765246450137,0.01108475,90214.0,90213.0,0.436513]
[1765246451350,0.01228,90215.0,90214.0,0.672507]
[1765246451767,0.01108426,90218.0,90215.0,0.33408463]
[1765246451967,0.01108426,90218.0,90216.0,0.31957]
[1765246452325,0.01108426,90218.0,90216.0,0.235539]
[1765246453368,0.01108426,90218.0,90215.0,0.291399]
[1765246453796,0.01108426,90218.0,90216.0,0.001]
[1765246454481,0.01108426,90218.0,90215.0,0.01108463]
[1765246454680,0.01108426,90218.0,90216.0,0.30747]
[1765246455258,0.2370777,90217.0,90216.0,0.14152]
[1765246456113,0.01108463,90215.0,90212.0,0.01108499]
[1765246456336,0.01108463,90215.0,90213.0,0.313774]
[1765246456538,0.01108463,90215.0,90213.0,0.241674]
[1765246456768,0.23277949,90215.0,90213.0,0.191287]
[1765246456949,0.05675263,90215.0,90213.0,0.191287]
[1765246457355,0.045668,90215.0,90213.0,0.191287]
[1765246458193,0.045668,90215.0,90214.0,0.254195]
[1765246459605,0.045668,90215.0,90214.0,0.256195]
[1765246460358,0.045668,90215.0,90214.0,0.257195]
[1765246460766,0.045668,90215.0,90214.0,0.184885]
[1765246461859,0.26736062,90215.0,90214.0,0.184885]
[1765246462966,0.30567062,90215.0,90214.0,0.003]
[1765246463846,0.01108499,90212.0,90204.0,0.323]
[1765246463983,0.23709491,90210.0,90199.0,0.23281633]
[1765246464189,0.01108598,90204.0,90198.0,0.03329107]
[1765246464387,0.01108622,90202.0,90197.0,0.77582084]
[1765246464615,0.0110861,90203.0,90200.0,0.01108647]
[1765246464811,0.01108635,90201.0,90198.0,0.72216172]
[1765246465013,0.01108635,90201.0,90198.0,0.01108672]
[1765246465192,0.01108622,90202.0,90199.0,0.01108659]
[1765246465397,0.01108598,90204.0,90201.0,0.01108635]
[1765246465798,0.23380624,90204.0,90200.0,0.23281379]
[1765246466004,0.01208598,90204.0,90200.0,0.23281379]
[1765246466196,0.23280078,90206.0,90201.0,0.01108635]
[1765246466401,0.01108549,90208.0,90204.0,0.01108598]
[1765246466600,0.01108561,90207.0,90204.0,0.01108598]
[1765246466875,0.01108573,90206.0,90203.0,0.0110861]
[1765246467083,0.002,90204.0,90203.0,0.0110861]
[1765246467397,0.01108585,90205.0,90202.0,0.01108622]
[1765246467671,0.01108585,90205.0,90204.0,0.002]
[1765246467879,0.01108573,90206.0,90204.0,0.002]
[1765246468229,0.01108561,90207.0,90204.0,0.002]
[1765246468827,0.01108549,90208.0,90206.0,0.08283677]
[1765246470214,0.01108549,90208.0,90206.0,0.08483677]
[1765246470423,0.01108536,90209.0,90206.0,0.08483677]
[1765246470623,0.01108536,90209.0,90206.0,0.0959225]
[1765246471855,0.2446194,90213.0,90209.0,0.22170736]
[1765246471856,0.02292,90213.0,90209.0,0.22170736]
[1765246472066,0.03879706,90213.0,90209.0,0.01108536]
[1765246472335,0.26049682,90213.0,90209.0,0.01108536]
[1765246472614,0.23278463,90213.0,90209.0,0.01108536]
[1765246472982,0.01108475,90214.0,90211.0,0.01108512]
[1765246473201,0.01108524,90210.0,90206.0,0.0939225]
[1765246474206,0.25570414,90213.0,90207.0,0.23279789]
[1765246474426,0.23278414,90213.0,90207.0,0.23279789]
[1765246474960,0.01108487,90213.0,90210.0,0.01108524]
[1765246475288,0.01108475,90214.0,90211.0,0.01108512]